fUST/lending_fUST_20250302
["ID","MTS","AMOUNT","RATE_DAILY","PERIOD"]
[355047532,1740881443533,-500.0,0.00024657,2]
[355047534,1740881443543,-1129.48,0.00024657,2]
[355047536,1740881443552,-500.0,0.00024657,2]
[355047538,1740881443561,-500.0,0.00024657,2]
[355047540,1740881443571,-500.0,0.00024657,2]
[355047542,1740881443581,-611.94,0.00024657,2]
[355047543,1740881443590,-500.0,0.00024657,2]
[355047545,1740881443600,-933.76,0.00024657,2]
[355047548,1740881443609,-500.0,0.00024657,2]
[355047550,1740881443619,-500.0,0.00024657,2]
[355047552,1740881443629,-500.0,0.00024657,2]
[355047554,1740881443639,-1487.24,0.00024657,2]
[355047556,1740881443650,-500.0,0.00024657,2]
[355047558,1740881443660,-875.54,0.00024657,2]
[355047560,1740881443670,-500.0,0.00024657,2]
[355047562,1740881443679,-500.0,0.00024657,2]
[355047564,1740881443688,-500.0,0.00024657,2]
[355047566,1740881443698,-500.0,0.00024657,2]
[355047568,1740881443707,-500.0,0.00024657,2]
[355047570,1740881443716,-500.0,0.00024657,2]
[355047571,1740881443726,-500.0,0.00024657,2]
[355047574,1740881443736,-1289.45,0.00024657,2]
[355047576,1740881443745,-500.0,0.00024657,2]
[355047578,1740881443755,-500.0,0.00024657,2]
[355047580,1740881443768,-500.0,0.00024657,2]
[355047582,1740881443778,-617.6,0.00024657,2]
[355047584,1740881443787,-438.23800319,0.00024657,2]
[355047586,1740881443797,-500.0,0.00024657,2]
[355047588,1740881443807,-520.6069713,0.00024657,2]
[355047590,1740881443816,-500.0,0.00024657,2]
[355047592,1740881443826,-500.0,0.00024657,2]
[355047593,1740881443836,-1571.86,0.00024657,2]
[355047594,1740881443846,-500.0,0.00024657,2]
[355047595,1740881443856,-500.0,0.00024657,2]
[355047596,1740881443865,-1254.34,0.00024657,2]
[355047597,1740881443875,-500.0,0.00024657,2]
[355047598,1740881443884,-853.03,0.00024657,2]
[355047599,1740881443893,-500.0,0.00024657,2]
[355047600,1740881443903,-500.0,0.00024657,2]
[355047602,1740881443915,-500.0,0.00024657,2]
[355047604,1740881443925,-13810.85,0.00024657,2]
[355047606,1740881443935,-1308.13,0.00024657,2]
[355047608,1740881443944,-1833.42,0.00024657,2]
[355047610,1740881443954,-500.0,0.00024657,2]
[355047611,1740881443964,-635.8667589,0.00024657,2]
[355047613,1740881443974,-500.0,0.00024657,2]
[355047615,1740881443983,-18462.49,0.00024657,2]
[355047617,1740881443993,-500.0,0.00024657,2]
[355047619,1740881444002,-500.0,0.00024657,2]
[355047621,1740881444012,-506.46626883,0.00024657,2]
[355047623,1740881444022,-1724.38,0.00024657,2]
[355047625,1740881444031,-500.0,0.00024657,2]
[355047627,1740881444041,-506.27684357,0.00024657,2]
[355047629,1740881444050,-500.0,0.00024657,2]
[355047630,1740881444059,-500.0,0.00024657,2]
[355047632,1740881444068,-258.99446986,0.00024657,2]
[355047634,1740881444078,-502.37784928,0.00024657,2]
[355047636,1740881444087,-500.0,0.00024657,2]
[355047638,1740881444098,-500.0,0.00024657,2]
[355047640,1740881444108,-902.33,0.00024657,2]
[355047642,1740881444117,-1135.71,0.00024657,2]
[355047644,1740881444127,-500.0,0.00024657,2]
[355047646,1740881444136,-500.0,0.00024657,2]
[355047648,1740881444146,-693.82,0.00024657,2]
[355047650,1740881444157,-500.0,0.00024657,2]
[355047652,1740881444166,-500.0,0.00024657,2]
[355047654,1740881444176,-500.0,0.00024657,2]
[355047656,1740881444185,-2700.8,0.00024657,2]
[355047658,1740881444195,-500.0,0.00024657,2]
[355047660,1740881444205,-500.0,0.00024657,2]
[355047662,1740881444214,-500.0,0.00024657,2]
[355047664,1740881444225,-500.0,0.00024657,2]
[355047666,1740881444234,-8908.64,0.00024657,2]
[355047668,1740881444244,-500.0,0.00024657,2]
[355047670,1740881444254,-500.0,0.00024657,2]
[355047672,1740881444263,-500.0,0.00024657,2]
[355047674,1740881444272,-500.0,0.00024657,2]
[355047676,1740881444281,-4005.59,0.00024657,2]
[355047678,1740881444291,-997.6,0.00024657,2]
[355047680,1740881444301,-500.0,0.00024657,2]
[355047682,1740881444310,-500.0,0.00024657,2]
[355047684,1740881444319,-501.26657096,0.00024657,2]
[355047686,1740881444331,-7688.68,0.00024657,2]
[355047688,1740881444340,-16097.19,0.00024657,2]
[355047690,1740881444349,-500.0,0.00024657,2]
[355047692,1740881444359,-929.05,0.00024657,2]
[355047694,1740881444369,-2101.88,0.00024657,2]
[355047696,1740881444378,-5152.42,0.00024657,2]
[355047698,1740881444388,-500.0,0.00024657,2]
[355047699,1740881444398,-1376.29,0.00024657,5]
[355047702,1740881444409,-500.0,0.00024657,2]
[355047703,1740881444419,-500.0,0.00024657,2]
[355047705,1740881444429,-500.0,0.00024657,2]
[355047707,1740881444438,-500.0,0.00024657,2]
[355047709,1740881444448,-500.0,0.00024657,2]
[355047711,1740881444457,-500.0,0.00024657,2]
[355047713,1740881444467,-500.0,0.00024657,2]
[355047715,1740881444476,-506.66156025,0.00024657,2]
[355047717,1740881444486,-500.0,0.00024657,2]
[355047718,1740881444495,-500.0,0.00024657,2]
[355047720,1740881444504,-500.0,0.00024657,2]
[355047722,1740881444514,-500.0,0.00024657,2]
[355047724,1740881444523,-500.0,0.00024657,2]
[355047726,1740881444532,-500.0,0.00024657,2]
[355047728,1740881444542,-500.0,0.00024657,2]
[355047730,1740881444552,-500.0,0.00024657,2]
[355047732,1740881444561,-500.0,0.00024657,2]
[355047734,1740881444570,-500.0,0.00024657,2]
[355047736,1740881444579,-500.0,0.00024657,2]
[355047738,1740881444588,-500.0,0.00024657,2]
[355047739,1740881444598,-500.0,0.00024657,2]
[355047741,1740881444608,-500.0,0.00024657,2]
[355047743,1740881444617,-500.0,0.00024657,2]
[355047745,1740881444627,-500.0,0.00024657,2]
[355047747,1740881444637,-1774.3,0.00024657,2]
[355047749,1740881444646,-500.0,0.00024657,2]
[355047751,1740881444656,-1714.07,0.00024657,2]
[355047753,1740881444666,-500.0,0.00024657,2]
[355047755,1740881444675,-500.0,0.00024657,2]
[355047757,1740881444685,-500.0,0.00024657,2]
[355047759,1740881444695,-500.0,0.00024657,2]
[355047761,1740881444704,-500.0,0.00024657,2]
[355047763,1740881444713,-500.0,0.00024657,2]
[355047765,1740881444722,-456.64078729,0.00024657,2]
[355047767,1740881444731,-500.0,0.00024657,2]
[355047768,1740881444740,-500.0,0.00024657,2]
[355047770,1740881444751,-500.0,0.00024657,2]
[355047772,1740881444763,-500.0,0.00024657,2]
[355047774,1740881444773,-500.0,0.00024657,2]
[355047776,1740881444782,-2218.12,0.00024657,2]
[355047778,1740881444791,-500.0,0.00024657,2]
[355047780,1740881444802,-500.0,0.00024657,2]
[355047782,1740881444811,-500.0,0.00024657,2]
[355047784,1740881444821,-500.0,0.00024657,2]
[355047786,1740881444830,-500.0,0.00024657,2]
[355047788,1740881444841,-4102.21,0.00024657,2]
[355047790,1740881444850,-500.0,0.00024657,2]
[355047792,1740881444859,-621.56664829,0.00024657,2]
[355047794,1740881444868,-500.0,0.00024657,2]
[355047796,1740881444878,-500.0,0.00024657,2]
[355047798,1740881444888,-500.0,0.00024657,2]
[355047799,1740881444897,-500.0,0.00024657,2]
[355047800,1740881444907,-500.0,0.00024657,2]
[355047801,1740881444916,-500.0,0.00024657,2]
[355047802,1740881444926,-1689.44,0.00024657,2]
[355047803,1740881444935,-500.0,0.00024657,2]
[355047804,1740881444944,-500.0,0.00024657,2]
[355047805,1740881444954,-500.0,0.00024657,2]
[355047806,1740881444963,-500.0,0.00024657,2]
[355047807,1740881444973,-500.0,0.00024657,2]
[355047808,1740881444982,-500.0,0.00024657,2]
[355047809,1740881444992,-6933.61,0.00024657,2]
[355047810,1740881445001,-631.92,0.00024657,2]
[355047811,1740881445010,-500.0,0.00024657,2]
[355047812,1740881445019,-500.0,0.00024657,2]
[355047813,1740881445028,-500.0,0.00024657,2]
[355047814,1740881445037,-676.87,0.00024657,2]
[355047816,1740881445047,-500.0,0.00024657,2]
[355047818,1740881445057,-500.0,0.00024657,2]
[355047820,1740881445067,-503.95055505,0.00024657,2]
[355047822,1740881445077,-500.0,0.00024657,2]
[355047824,1740881445086,-500.99567565,0.00024657,2]
[355047826,1740881445096,-500.0,0.00024657,2]
[355047828,1740881445105,-500.0,0.00024657,2]
[355047830,1740881445116,-500.0,0.00024657,2]
[355047832,1740881445126,-500.0,0.00024657,2]
[355047834,1740881445136,-1305.73,0.00024657,2]
[355047836,1740881445145,-500.0,0.00024657,2]
[355047838,1740881445157,-500.0,0.00024657,2]
[355047840,1740881445166,-500.0,0.00024657,2]
[355047842,1740881445175,-1484.64,0.00024657,2]
[355047844,1740881445184,-500.0,0.00024657,2]
[355047846,1740881445194,-500.0,0.00024657,2]
[355047847,1740881445203,-500.0,0.00024657,2]
[355047849,1740881445213,-941.5,0.00024657,2]
[355047851,1740881445222,-500.0,0.00024657,2]
[355047853,1740881445232,-3783.09,0.00024657,2]
[355047855,1740881445242,-500.0,0.00024657,2]
[355047857,1740881445251,-500.0,0.00024657,2]
[355047859,1740881445261,-500.0,0.00024657,2]
[355047861,1740881445270,-500.0,0.00024657,2]
[355047863,1740881445280,-1301.27,0.00024657,2]
[355047865,1740881445289,-500.0,0.00024657,2]
[355047867,1740881445299,-500.0,0.00024657,2]
[355047869,1740881445308,-745.63,0.00024657,2]
[355047871,1740881445318,-501.89301672,0.00024657,2]
[355047873,1740881445327,-500.0,0.00024657,2]
[355047875,1740881445336,-500.0,0.00024657,2]
[355047877,1740881445345,-991.43,0.00024657,2]
[355047879,1740881445355,-500.0,0.00024657,2]
[355047881,1740881445364,-500.0,0.00024657,2]
[355047883,1740881445374,-7351.2,0.00024657,2]
[355047885,1740881445383,-500.0,0.00024657,2]
[355047886,1740881445393,-500.0,0.00024657,2]
[355047888,1740881445403,-529.53240311,0.00024657,2]
[355047890,1740881445413,-500.0,0.00024657,2]
[355047892,1740881445423,-500.0,0.00024657,2]
[355047894,1740881445432,-500.0,0.00024657,2]
[355047896,1740881445441,-500.0,0.00024657,2]
[355047898,1740881445451,-500.0,0.00024657,2]
[355047900,1740881445460,-1120.8,0.00024657,2]
[355047902,1740881445470,-696.3,0.00024657,2]
[355047904,1740881445480,-500.0,0.00024657,2]
[355047906,1740881445490,-19976.67,0.00024657,2]
[355047908,1740881445499,-500.0,0.00024657,2]
[355047910,1740881445509,-500.0,0.00024657,2]
[355047912,1740881445519,-500.72315907,0.00024657,2]
[355047914,1740881445528,-945.42,0.00024657,2]
[355047916,1740881445538,-579.48950715,0.00024657,2]
[355047918,1740881445547,-2117.79,0.00024657,2]
[355047920,1740881445557,-765.68,0.00024657,2]
[355047922,1740881445566,-500.0,0.00024657,2]
[355047924,1740881445576,-500.0,0.00024657,2]
[355047926,1740881445586,-500.0,0.00024657,2]
[355047928,1740881445595,-500.0,0.00024657,2]
[355047930,1740881445605,-1997.6,0.00024657,2]
[355047932,1740881445614,-500.0,0.00024657,2]
[355047934,1740881445623,-500.0,0.00024657,2]
[355047936,1740881445633,-500.0,0.00024657,2]
[355047938,1740881445642,-500.0,0.00024657,2]
[355047940,1740881445652,-1300.7,0.00024657,2]
[355047942,1740881445662,-500.0,0.00024657,2]
[355047944,1740881445672,-500.0,0.00024657,2]
[355047946,1740881445681,-500.0,0.00024657,2]
[355047948,1740881445691,-500.0,0.00024657,2]
[355047950,1740881445700,-525.44,0.00024657,2]
[355047952,1740881445710,-500.0,0.00024657,2]
[355047953,1740881445720,-586.04911082,0.00024658,2]
[355047955,1740881445729,-500.0,0.00024658,2]
[355047957,1740881445740,-500.0,0.00024658,2]
[355047959,1740881445750,-500.0,0.00024658,2]
[355047961,1740881445764,-500.0,0.00024658,2]
[355047964,1740881445774,-500.0,0.00024658,2]
[355047966,1740881445784,-500.0,0.00024658,2]
[355047968,1740881445794,-500.0,0.00024658,2]
[355047970,1740881445804,-500.0,0.00024658,2]
[355047972,1740881445814,-500.0,0.00024658,2]
[355047974,1740881445824,-403.27797658,0.00024658,2]
[355047976,1740881445837,-500.0,0.00024658,2]
[355047978,1740881445846,-160.03203288,0.00024673,2]
[355047980,1740881445856,-500.0,0.00024673,2]
[355047982,1740881445865,-500.0,0.00024673,2]
[355047984,1740881445875,-500.0,0.00024673,2]
[355047986,1740881445889,-500.0,0.00024673,2]
[355047987,1740881445910,-500.0,0.00024673,2]
[355047989,1740881445922,-506.8949467,0.00024673,2]
[355047991,1740881445932,-402.65975648,0.00024673,2]
[355047993,1740881445942,-500.0,0.00024673,2]
[355047994,1740881445952,-602.91949205,0.00024673,2]
[355047996,1740881445962,-500.0,0.00024673,2]
[355047998,1740881445971,-500.0,0.00024673,2]
[355048000,1740881445981,-500.0,0.00024673,2]
[355048002,1740881445991,-388.36790005,0.00024673,2]
[355048004,1740881446001,-161.64554503,0.00024673,2]
[355048005,1740881446011,-160.03203287,0.00024673,2]
[355048006,1740881446021,-160.03203288,0.00024673,2]
[355048007,1740881446030,-500.0,0.00024673,2]
[355048008,1740881446040,-160.03203288,0.00024673,2]
[355048009,1740881446050,-500.0,0.00024673,2]
[355048010,1740881446059,-500.0,0.00024673,2]
[355048011,1740881446069,-500.0,0.00024673,2]
[355048014,1740881446082,-508.48599119,0.00024673,2]
[355048016,1740881446092,-500.0,0.00024673,2]
[355048018,1740881446101,-500.0,0.00024673,2]
[355048020,1740881446111,-500.0,0.00024673,2]
[355048062,1740881446306,-251.68016735,0.00024673,2]
[355048066,1740881446344,-401.95150697,0.00024673,2]
[355048071,1740881446355,-500.0,0.00024673,2]
[355048074,1740881446366,-500.0,0.00024673,2]
[355048077,1740881446376,-500.0,0.00024673,2]
[355048081,1740881446386,-7120.02904812,0.00024831,2]
[355048084,1740881446395,-500.0,0.00024931,2]
[355048087,1740881446405,-623.5975962,0.00024931,2]
[355048090,1740881446415,-496.57913224,0.00024931,2]
[355048093,1740881446425,-500.0,0.00024931,2]
[355048095,1740881446435,-534.91354378,0.00024931,2]
[355048098,1740881446445,-500.0,0.00024931,2]
[355048101,1740881446455,-729.98,0.00024931,2]
[355048104,1740881446465,-1030.85,0.00024931,2]
[355048107,1740881446475,-507.74879534,0.00024931,2]
[355048110,1740881446484,-500.0,0.00024931,2]
[355048113,1740881446494,-500.0,0.00024931,2]
[355048116,1740881446503,-740.07,0.00024931,2]
[355048119,1740881446513,-500.0,0.00024931,2]
[355048122,1740881446524,-500.0,0.00024931,2]
[355048125,1740881446533,-500.0,0.00024931,2]
[355048128,1740881446543,-500.0,0.00024931,2]
[355048130,1740881446552,-500.0,0.00024931,2]
[355048133,1740881446563,-500.0,0.00024931,2]
[355048134,1740881446574,-493.17265809,0.00024931,2]
[355048135,1740881446583,-510.29838637,0.00024931,2]
[355048136,1740881446593,-500.0,0.00024931,2]
[355048137,1740881446603,-500.0,0.00024931,2]
[355048138,1740881446613,-500.0,0.00024931,2]
[355048139,1740881446622,-568.58,0.00024931,2]
[355048140,1740881446632,-1561.57,0.00024931,2]
[355048141,1740881446642,-500.0,0.00024931,2]
[355048142,1740881446651,-500.0,0.00024931,2]
[355048143,1740881446662,-500.0,0.00024931,2]
[355048144,1740881446671,-1217.99,0.00024931,2]
[355048145,1740881446681,-500.0,0.00024931,2]
[355048146,1740881446690,-500.0,0.00024931,2]
[355048147,1740881446700,-500.0,0.00024931,2]
[355048148,1740881446709,-500.0,0.00024931,2]
[355048149,1740881446719,-500.0,0.00024931,2]
[355048151,1740881446728,-500.0,0.00024931,2]
[355048153,1740881446738,-500.0,0.00024931,2]
[355048155,1740881446748,-500.0,0.00024931,2]
[355048157,1740881446758,-1237.78,0.00024931,2]
[355048159,1740881446769,-873.01,0.00024931,2]
[355048161,1740881446779,-500.0,0.00024931,2]
[355048163,1740881446789,-500.0,0.00024931,2]
[355048165,1740881446799,-601.68,0.00024931,2]
[355048167,1740881446809,-500.0,0.00024931,2]
[355048170,1740881446819,-500.0,0.00024931,2]
[355048172,1740881446829,-812.01,0.00024931,2]
[355048174,1740881446840,-500.0,0.00024931,2]
[355048175,1740881446849,-500.0,0.00024931,2]
[355048177,1740881446859,-500.0,0.00024931,2]
[355048179,1740881446869,-507.77971639,0.00024931,2]
[355048181,1740881446879,-602.72,0.00024931,2]
[355048183,1740881446888,-500.0,0.00024931,2]
[355048185,1740881446898,-511.31344293,0.00024931,2]
[355048187,1740881446908,-500.0,0.00024931,2]
[355048189,1740881446917,-513.5662548,0.00024931,2]
[355048191,1740881446927,-500.0,0.00024931,2]
[355048193,1740881446936,-500.0,0.00024931,2]
[355048195,1740881446947,-507.42332165,0.00024931,2]
[355048197,1740881446956,-507.19798736,0.00024931,2]
[355048199,1740881446966,-500.0,0.00024931,2]
[355048201,1740881446976,-535.8375657,0.00024931,2]
[355048204,1740881446985,-509.81132047,0.00024931,2]
[355048205,1740881446995,-500.0,0.00024931,2]
[355048207,1740881447005,-500.0,0.00024931,2]
[355048209,1740881447015,-155.68639401,0.00024931,2]
[355048211,1740881447024,-512.76057005,0.00024931,2]
[355048212,1740881447034,-500.0,0.00024931,2]
[355048213,1740881447043,-528.00899007,0.00024931,2]
[355048214,1740881447052,-500.0,0.00024931,2]
[355048216,1740881447062,-506.80978573,0.00024931,2]
[355048218,1740881447071,-500.0,0.00024931,2]
[355048220,1740881447081,-500.0,0.00024931,2]
[355048222,1740881447090,-500.0,0.00024931,2]
[355048225,1740881447102,-500.0,0.00024931,2]
[355048227,1740881447112,-659.29,0.00024931,2]
[355048229,1740881447121,-973.36,0.00024931,2]
[355048230,1740881447131,-517.02429512,0.00024931,2]
[355048232,1740881447141,-500.0,0.00024931,2]
[355048234,1740881447151,-500.0,0.00024931,2]
[355048236,1740881447161,-759.22,0.00024931,2]
[355048238,1740881447171,-500.0,0.00024931,2]
[355048240,1740881447180,-500.0,0.00024931,2]
[355048242,1740881447190,-500.0,0.00024931,2]
[355048244,1740881447199,-500.0,0.00024931,2]
[355048246,1740881447208,-504.00031012,0.00024931,2]
[355048247,1740881447218,-500.0,0.00024931,2]
[355048249,1740881447227,-509.82187837,0.00024931,2]
[355048251,1740881447237,-583.6,0.00024931,2]
[355048253,1740881447247,-500.0,0.00024931,2]
[355048255,1740881447256,-500.0,0.00024931,2]
[355048258,1740881447266,-430.89,0.00024931,2]
[355048260,1740881447283,-500.0,0.00024931,2]
[355048262,1740881447294,-526.83,0.00024931,2]
[355048264,1740881447304,-1082.47,0.00024931,2]
[355048266,1740881447314,-500.0,0.00024931,2]
[355048268,1740881447325,-500.0,0.00024931,2]
[355048270,1740881447336,-500.0,0.00024931,2]
[355048272,1740881447347,-710.93,0.00024931,2]
[355048275,1740881447358,-500.0,0.00024931,2]
[355048276,1740881447369,-500.0,0.00024931,2]
[355048278,1740881447379,-502.5,0.00024931,2]
[355048281,1740881447389,-500.0,0.00024931,2]
[355048283,1740881447399,-607.78,0.00024931,2]
[355048285,1740881447410,-500.0,0.00024931,2]
[355048287,1740881447420,-1662.64,0.00024931,2]
[355048289,1740881447430,-500.0,0.00024931,2]
[355048291,1740881447440,-509.6257633,0.00024931,2]
[355048293,1740881447450,-500.0,0.00024931,2]
[355048295,1740881447459,-964.95,0.00024931,2]
[355048297,1740881447469,-1574.77,0.00024931,2]
[355048299,1740881447479,-1711.03,0.00024931,2]
[355048301,1740881447489,-509.9991991,0.00024931,2]
[355048303,1740881447499,-500.0,0.00024931,2]
[355048305,1740881447510,-500.0,0.00024931,2]
[355048307,1740881447522,-500.0,0.00024931,2]
[355048309,1740881447533,-500.0,0.00024931,2]
[355048311,1740881447544,-966.57,0.00024931,2]
[355048313,1740881447554,-507.95027883,0.00024931,2]
[355048315,1740881447564,-500.0,0.00024931,2]
[355048316,1740881447575,-1589.39,0.00024931,2]
[355048318,1740881447586,-760.11,0.00024931,2]
[355048320,1740881447596,-500.0,0.00024931,2]
[355048322,1740881447606,-500.0,0.00024931,2]
[355048324,1740881447617,-500.0,0.00024931,2]
[355048326,1740881447627,-689.45,0.00024931,2]
[355048328,1740881447638,-500.0,0.00024931,2]
[355048330,1740881447648,-500.0,0.00024931,2]
[355048333,1740881447659,-500.0,0.00024931,2]
[355048335,1740881447669,-512.32,0.00024931,2]
[355048337,1740881447680,-500.0,0.00024931,2]
[355048338,1740881447690,-519.24,0.00024931,2]
[355048340,1740881447700,-500.0,0.00024931,2]
[355048342,1740881447710,-476.83627928,0.00024931,2]
[355048344,1740881447720,-500.0,0.00024931,2]
[355048346,1740881447731,-200.0,0.00024931,2]
[355048348,1740881447741,-500.0,0.00024931,2]
[355048350,1740881447751,-847.79,0.00024931,2]
[355048352,1740881447764,-500.0,0.00024931,2]
[355048355,1740881447774,-500.0,0.00024931,2]
[355048357,1740881447784,-509.95451066,0.00024931,2]
[355048359,1740881447794,-500.0,0.00024931,2]
[355048361,1740881447807,-1071.65,0.00024931,2]
[355048363,1740881447817,-500.0,0.00024931,2]
[355048365,1740881447827,-753.24,0.00024931,2]
[355048367,1740881447838,-507.3632413,0.00024931,2]
[355048369,1740881447849,-500.0,0.00024931,2]
[355048371,1740881447859,-1774.72,0.00024931,2]
[355048373,1740881447869,-500.0,0.00024931,2]
[355048375,1740881447879,-500.0,0.00024931,2]
[355048378,1740881447889,-517.31530468,0.00024931,2]
[355048380,1740881447900,-500.0,0.00024931,2]
[355048381,1740881447910,-632.38,0.00024931,2]
[355048384,1740881447920,-500.0,0.00024931,2]
[355048386,1740881447930,-1108.52,0.00024931,2]
[355048388,1740881447941,-500.0,0.00024931,2]
[355048390,1740881447951,-508.65650462,0.00024931,2]
[355048392,1740881447962,-500.0,0.00024931,2]
[355048394,1740881447972,-500.0,0.00024931,2]
[355048396,1740881447984,-500.0,0.00024931,2]
[355048398,1740881447994,-500.0,0.00024931,2]
[355048400,1740881448004,-500.0,0.00024931,2]
[355048402,1740881448014,-1057.22,0.00024931,2]
[355048404,1740881448024,-500.0,0.00024931,2]
[355048406,1740881448034,-593.06,0.00024931,2]
[355048408,1740881448046,-500.0,0.00024931,2]
[355048410,1740881448056,-500.0,0.00024931,2]
[355048412,1740881448066,-500.0,0.00024931,2]
[355048414,1740881448076,-500.0,0.00024931,2]
[355048415,1740881448087,-561.79,0.00024931,2]
[355048416,1740881448098,-367.80380388,0.00024931,2]
[355048417,1740881448108,-500.0,0.00024931,2]
[355048418,1740881448119,-500.0,0.00024931,2]
[355048419,1740881448130,-500.0,0.00024931,2]
[355048420,1740881448140,-512.5,0.00024931,2]
[355048421,1740881448150,-2662.96,0.00024931,2]
[355048422,1740881448160,-500.0,0.00024931,2]
[355048424,1740881448170,-500.0,0.00024931,2]
[355048425,1740881448180,-630.74,0.00024931,2]
[355048427,1740881448191,-500.0,0.00024931,2]
[355048429,1740881448202,-500.0,0.00024931,2]
[355048432,1740881448215,-507.36896267,0.00024931,2]
[355048433,1740881448226,-514.81,0.00024931,2]
[355048436,1740881448236,-500.0,0.00024931,2]
[355048437,1740881448246,-500.0,0.00024931,2]
[355048440,1740881448256,-1813.2,0.00024931,2]
[355048442,1740881448267,-500.0,0.00024931,2]
[355048443,1740881448278,-500.0,0.00024931,2]
[355048446,1740881448289,-1207.28,0.00024931,2]
[355048448,1740881448300,-888.81,0.00024931,2]
[355048450,1740881448310,-500.0,0.00024931,2]
[355048452,1740881448321,-1890.33,0.00024931,2]
[355048454,1740881448331,-500.0,0.00024931,2]
[355048456,1740881448341,-500.0,0.00024931,2]
[355048458,1740881448351,-500.0,0.00024931,2]
[355048460,1740881448361,-500.0,0.00024931,2]
[355048462,1740881448371,-500.0,0.00024931,2]
[355048464,1740881448381,-500.0,0.00024931,2]
[355048466,1740881448392,-1006.16,0.00024931,2]
[355048468,1740881448402,-506.87123108,0.00024931,2]
[355048470,1740881448413,-500.0,0.00024931,2]
[355048472,1740881448423,-554.05,0.00024931,2]
[355048474,1740881448434,-500.0,0.00024931,2]
[355048476,1740881448445,-567.35,0.00024931,2]
[355048478,1740881448455,-500.0,0.00024931,2]
[355048480,1740881448465,-500.0,0.00024931,2]
[355048482,1740881448476,-506.2635078,0.00024931,2]
[355048484,1740881448486,-508.2318925,0.00024931,2]
[355048486,1740881448496,-500.0,0.00024931,2]
[355048488,1740881448506,-468.59008484,0.00024931,2]
[355048490,1740881448515,-581.66011826,0.00024931,2]
[355048492,1740881448525,-500.0,0.00024931,2]
[355048494,1740881448535,-500.0,0.00024931,2]
[355048496,1740881448545,-500.0,0.00024931,2]
[355048498,1740881448555,-510.27792543,0.00024931,2]
[355048500,1740881448566,-500.0,0.00024931,2]
[355048502,1740881448575,-500.0,0.00024931,2]
[355048504,1740881448586,-503.35070111,0.00024931,2]
[355048506,1740881448596,-500.0,0.00024931,2]
[355048508,1740881448607,-2368.56,0.00024931,2]
[355048510,1740881448617,-1730.45,0.00024931,2]
[355048512,1740881448627,-500.0,0.00024931,2]
[355048514,1740881448636,-500.0,0.00024931,2]
[355048516,1740881448646,-1345.23,0.00024931,2]
[355048518,1740881448655,-500.0,0.00024931,2]
[355048520,1740881448666,-943.33,0.00024931,2]
[355048522,1740881448675,-500.0,0.00024931,2]
[355048524,1740881448686,-533.54231106,0.00024931,2]
[355048526,1740881448695,-1216.37,0.00024931,2]
[355048529,1740881448706,-500.0,0.00024931,2]
[355048531,1740881448716,-658.63,0.00024931,2]